bitfinex/quotes_ETHUSD_20241018
["timestamp","ask_amount","ask_price","bid_price","bid_amount"]
[1729241464734,3.78585,2641.5,2641.2,0.79395277]
[1729241465055,3.78587,2641.4,2641.3,0.98448081]
[1729241466464,3.78572,2641.5,2641.3,0.98448081]
[1729241466662,3.78572,2641.5,2641.1,0.79395277]
[1729241466866,3.78592,2641.4,2641.2,0.98387439]
[1729241467045,3.78592,2641.4,2641.3,0.98387439]
[1729241467378,3.78592,2641.4,2641.2,0.98387439]
[1729241467579,7.57152,2641.5,2641.2,0.98361866]
[1729241467876,3.78572,2641.5,2641.2,0.98361866]
[1729241468809,7.57154,2641.5,2641.2,0.98361866]
[1729241469006,3.7859,2641.4,2641.2,0.98361866]
[1729241469214,3.7859,2641.4,2641.1,1.77757143]
[1729241469508,3.78572,2641.5,2641.2,0.07280833]
[1729241470265,3.78589,2641.4,2641.2,0.07280833]
[1729241470784,3.78589,2641.4,2641.1,0.98316455]
[1729241470985,3.78589,2641.4,2641.3,0.07272657]
[1729241471281,3.78601,2641.3,2641.0,1.80036455]
[1729241471481,3.78601,2641.3,2641.0,0.8172]
[1729241471894,3.78589,2641.4,2641.0,0.8172]
[1729241473082,7.57185,2641.4,2641.0,0.8172]
[1729241473290,3.78589,2641.4,2641.0,0.8172]
[1729241475404,0.9114,2641.3,2640.8,1.79955845]
[1729241475597,0.9114,2641.3,2640.8,0.8172]
[1729241475598,3.78638,2641.1,2640.8,0.8172]
[1729241475834,3.78644,2641.0,2640.9,0.07305366]
[1729241476037,4.69784,2641.0,2640.9,0.07305366]
[1729241476217,3.78722,2640.5,2640.2,1.61115277]
[1729241476416,3.78722,2640.5,2640.2,0.8172]
[1729241476654,7.5745,2640.5,2640.3,0.06912751]
[1729241476953,7.5745,2640.5,2640.0,0.8172]
[1729241476954,3.78734,2640.4,2640.0,0.8172]
[1729241477106,3.78734,2640.4,2640.1,0.06965076]
[1729241477610,3.78755,2640.3,2640.1,0.06965076]
[1729241478008,4.35913414,2640.4,2639.8,0.87404025]
[1729241478212,4.69029,2640.6,2640.2,0.06956893]
[1729241478440,3.78676,2640.8,2640.2,3.7875]
[1729241478751,3.78676,2640.8,2640.4,0.8172]
[1729241478935,3.78676,2640.8,2640.5,0.06944145]
[1729241480367,3.78689,2640.7,2640.5,0.06944145]
[1729241480669,7.57358,2640.8,2640.5,0.06944145]
[1729241480835,3.78698,2640.7,2640.5,0.06944145]
[1729241481223,3.78698,2640.7,2640.2,0.8172]
[1729241481428,3.78698,2640.7,2640.6,0.06935964]
[1729241481673,0.841914,2640.7,2640.2,0.8172]
[1729241481853,3.78713,2640.6,2640.2,0.8172]
[1729241482764,3.78704,2640.6,2640.2,0.8172]
[1729241483271,7.57415,2640.6,2640.2,0.8172]
[1729241483936,7.57417,2640.6,2640.2,0.8172]
[1729241484772,3.78704,2640.6,2640.2,0.8172]
[1729241486154,3.78723,2640.5,2640.2,0.8172]
[1729241486360,3.78731,2640.4,2639.9,0.8177]
[1729241486564,3.78731,2640.4,2639.9,4.60571]
[1729241487933,4.67146,2640.5,2639.9,4.60571]
[1729241488133,3.7873,2640.4,2639.9,4.60571]
[1729241489647,0.8843,2640.5,2639.9,4.60571]
[1729241490243,0.8843,2640.5,2639.9,0.8177]
[1729241490577,0.8843,2640.5,2640.0,7.5757]
[1729241490837,0.8843,2640.5,2640.1,0.07001649]
[1729241492083,3.78704,2640.6,2640.1,3.85773649]
[1729241492384,4.61462,2640.8,2640.1,0.07001649]
[1729241492385,0.8278,2640.8,2640.1,0.07001649]
[1729241492609,3.78716,2640.5,2640.1,0.07001649]
[1729241492915,7.57442,2640.5,2640.1,0.07001649]
[1729241493319,0.8828,2640.4,2640.1,0.07001649]
[1729241493531,4.67039,2640.2,2640.1,0.07001649]
[1729241493881,3.78774,2640.1,2639.5,4.6062]
[1729241494095,7.57557,2640.1,2639.5,4.6062]
[1729241494726,3.78774,2640.1,2639.5,4.6062]
[1729241494886,0.8828,2640.2,2639.6,3.78837]
[1729241494887,4.67039,2640.2,2639.6,3.78837]
[1729241495080,3.78751,2640.3,2639.8,3.78808]
[1729241496014,3.78751,2640.3,2639.7,4.60594]
[1729241496187,3.78751,2640.3,2639.7,8.3942]
[1729241496383,3.78751,2640.3,2639.7,4.60594]
[1729241497625,7.57503,2640.3,2639.7,4.60594]
[1729241497783,3.78751,2640.3,2639.7,4.60594]
[1729241497988,7.57504,2640.3,2639.7,4.60594]
[1729241498186,3.78751,2640.3,2639.7,4.60594]
[1729241498413,7.57506,2640.3,2639.7,4.60594]
[1729241498673,3.78751,2640.3,2639.7,4.60594]
[1729241500620,3.78751,2640.3,2639.8,3.78815]
[1729241501025,3.78751,2640.3,2639.7,4.60594]
[1729241501437,3.78751,2640.3,2639.8,3.78809]
[1729241502662,3.78725,2640.5,2640.1,0.8177]
[1729241502817,7.57449,2640.5,2640.1,0.8177]
[1729241503024,7.57451,2640.5,2640.1,0.8177]
[1729241503659,3.78724,2640.5,2640.1,0.8177]
[1729241504462,7.57448,2640.5,2640.1,0.8177]
[1729241504637,3.78724,2640.5,2640.1,0.8177]
[1729241504837,7.57449,2640.5,2640.1,0.8177]
[1729241505169,3.7873,2640.4,2640.1,0.8177]
[1729241505524,3.78724,2640.5,2640.1,0.8177]
[1729241505525,7.57448,2640.5,2640.1,0.8177]
[1729241505826,3.78724,2640.5,2640.2,0.06768052]
[1729241506371,7.57393,2640.7,2640.2,0.06768052]
[1729241506672,3.78694,2640.7,2640.2,0.06768052]
[1729241507057,7.57394,2640.7,2640.2,0.06768052]
[1729241508175,3.78701,2640.6,2640.2,0.06768052]
[1729241508380,3.78669,2640.9,2640.3,0.8177]
[1729241508584,3.78669,2640.9,2640.4,0.06751688]
[1729241508743,3.78674,2640.8,2640.4,0.06751688]
[1729241511137,4.63161,2640.6,2640.4,0.06751688]
[1729241511570,4.63161,2640.6,2640.1,2.59373694]
[1729241511768,3.78722,2640.5,2640.2,0.06768052]
[1729241512375,4.63161,2640.6,2640.2,0.06768052]
[1729241512676,3.78682,2640.8,2640.2,3.85525052]
[1729241512875,3.7869,2640.7,2640.2,4.83784288]
[1729241513072,3.7869,2640.7,2640.2,1.05027288]
[1729241513513,3.78682,2640.8,2640.4,0.8177]
[1729241514010,3.78661,2640.9,2640.5,0.06743507]
[1729241514416,3.78673,2640.8,2640.5,0.06743507]
[1729241514578,7.57312,2641.0,2640.5,0.06743507]
[1729241514918,3.78663,2640.9,2640.5,0.06743507]
[1729241515122,3.7864,2641.1,2640.6,0.818]
[1729241515618,3.7864,2641.1,2640.7,0.06706857]
[1729241518624,3.7864,2641.1,2640.7,1.05040702]
[1729241520320,3.78641,2641.1,2640.7,1.05040702]
[1729241520725,3.78659,2640.9,2640.7,0.06706857]
[1729241521097,3.78673,2640.8,2640.7,1.05132216]
[1729241521298,4.62203,2640.8,2640.7,0.06706857]
[1729241521627,4.62203,2640.8,2640.4,1.61195277]
[1729241521782,4.62203,2640.8,2640.7,0.06486396]
[1729241521984,4.62203,2640.8,2640.4,1.61195277]
[1729241522209,4.62203,2640.8,2640.5,1.04958197]
[1729241522398,4.62203,2640.8,2640.5,0.06502757]
[1729241523729,3.78681,2640.8,2640.5,0.06502757]
[1729241524023,3.78681,2640.8,2640.6,0.98451016]
[1729241524394,3.78681,2640.8,2640.7,0.06486396]
[1729241524805,3.78681,2640.8,2640.4,1.61195277]
[1729241525120,3.78681,2640.8,2640.5,1.04952384]
[1729241525299,3.78673,2640.8,2640.5,0.06502757]
[1729241526812,3.78673,2640.8,2640.5,1.04951897]
[1729241527012,3.78673,2640.8,2640.5,0.06502757]
[1729241529134,3.78653,2641.0,2640.6,0.98441858]
[1729241529293,3.78661,2640.9,2640.6,0.9843927]
[1729241529498,3.78667,2640.9,2640.7,0.06273683]
[1729241529694,3.78653,2641.0,2640.7,0.88073683]
[1729241529899,3.78653,2641.0,2640.7,0.818]
[1729241530128,3.78653,2641.0,2640.8,0.06265504]
[1729241530440,3.78653,2641.0,2640.7,0.818]
[1729241530613,3.78666,2640.9,2640.6,0.98435675]
[1729241530798,3.78674,2640.8,2640.5,0.818]
[1729241531139,8.40617,2640.8,2640.4,0.79395277]
[1729241531338,8.40617,2640.8,2640.3,0.79395277]
[1729241531339,4.61934,2640.8,2640.3,0.79395277]
[1729241531632,4.61934,2640.8,2640.4,1.77833362]
[1729241531837,4.61934,2640.8,2640.5,0.98438085]
[1729241532037,3.78674,2640.8,2640.4,0.79395277]
[1729241532250,7.57359,2640.8,2640.5,0.98440576]
[1729241532546,7.57359,2640.8,2640.5,0.98433571]
[1729241532752,3.78674,2640.8,2640.5,0.98433571]
[1729241532953,7.57355,2640.8,2640.5,0.98433571]
[1729241533454,3.78688,2640.7,2640.5,0.98433571]
[1729241533638,3.78688,2640.7,2640.3,0.79395277]
[1729241533812,4.64165,2641.0,2640.4,1.77833028]
[1729241534013,3.78658,2640.9,2640.5,1.80237751]
[1729241534258,3.78658,2640.9,2640.5,0.818]
[1729241535163,3.78675,2640.8,2640.5,0.818]
[1729241535875,3.78675,2640.8,2640.6,0.06282745]
[1729241537561,7.5736,2640.8,2640.6,0.06282745]
[1729241537718,3.78675,2640.8,2640.6,0.06282745]
[1729241538210,7.57356,2640.8,2640.6,0.06282745]
[1729241538411,3.78675,2640.8,2640.6,0.06282745]
[1729241539759,3.78687,2640.7,2640.6,0.06282745]
[1729241540072,3.78687,2640.7,2640.5,0.98447317]
[1729241540277,0.9049,2640.6,2640.3,0.79395277]
[1729241540563,4.69192,2640.6,2640.4,0.98452197]
[1729241540725,4.69192,2640.6,2640.3,0.79395277]
[1729241541061,0.9049,2640.6,2640.4,0.98466849]
[1729241541259,3.78688,2640.7,2640.5,0.9846934]
[1729241541557,3.78688,2640.7,2640.4,0.79395277]
[1729241541860,3.78688,2640.7,2640.5,0.98477066]
[1729241542060,3.78688,2640.7,2640.4,0.79395277]
[1729241542217,3.78688,2640.7,2640.5,0.98479964]
[1729241542423,3.78688,2640.7,2640.4,0.79395277]
[1729241542769,3.78688,2640.7,2640.5,0.9849084]
[1729241542968,3.78702,2640.6,2640.4,0.79395277]
[1729241543257,3.78702,2640.6,2640.5,0.98490357]
[1729241543768,3.7873,2640.4,2640.3,0.79395277]
[1729241543981,0.8525,2640.4,2640.1,0.79395277]
[1729241544275,3.78773,2640.1,2639.9,0.79395277]
[1729241544421,3.78773,2640.1,2639.7,2.06577033]
[1729241544422,3.78773,2640.1,2640.0,0.98519559]
[1729241545270,7.57557,2640.1,2639.8,0.79395277]
[1729241545563,7.57556,2640.1,2639.9,1.77912378]
[1729241545764,4.64023,2640.1,2639.8,0.79395277]
[1729241545964,3.78797,2640.0,2639.9,0.98529905]
[1729241546353,3.78797,2640.0,2639.7,1.24777033]
[1729241546354,3.78802,2639.9,2639.7,0.79395277]
[1729241546553,3.7883,2639.7,2639.6,0.79395277]
[1729241546738,3.7883,2639.7,2639.6,0.98531268]
[1729241548573,3.78871,2639.5,2639.3,0.79395277]
[1729241548760,3.78871,2639.5,2639.4,0.98485694]
[1729241548958,7.57744,2639.5,2639.2,1.61205277]
[1729241549127,7.57744,2639.5,2639.3,0.98490749]
[1729241549567,3.78871,2639.5,2639.3,0.98490749]
[1729241549864,7.5774,2639.5,2639.3,0.98490749]
[1729241550051,3.78869,2639.5,2639.3,0.98490749]
[1729241550254,3.78869,2639.5,2639.2,0.8181]
[1729241550431,3.78869,2639.5,2639.2,1.80300749]
[1729241550632,3.78869,2639.5,2639.3,0.06384925]
[1729241550832,7.57736,2639.5,2639.2,1.80300749]
[1729241551040,7.57736,2639.5,2639.3,0.06384925]
[1729241551269,3.78867,2639.5,2639.2,0.8181]
[1729241551460,3.78867,2639.5,2639.4,0.06376737]
[1729241551639,3.78853,2639.6,2639.3,0.06384925]
[1729241551967,3.78853,2639.6,2639.2,0.8181]
[1729241551968,3.78853,2639.6,2639.2,2.59696026]
[1729241552139,3.78853,2639.6,2639.4,0.06376737]
[1729241552346,3.78853,2639.6,2639.3,0.06384925]
[1729241552546,3.78853,2639.6,2639.5,0.0636855]
[1729241552754,3.78853,2639.6,2639.4,0.06376737]
[1729241552926,3.78853,2639.6,2639.5,0.0636855]
[1729241553330,3.78853,2639.6,2639.2,0.8181]
[1729241553540,3.78782,2640.1,2639.5,4.6702555]
[1729241553729,3.78788,2640.0,2639.5,0.8181]
[1729241553928,3.78788,2640.0,2639.6,0.06360363]
[1729241554885,7.57588,2640.0,2639.6,0.06360363]
[1729241555036,3.78788,2640.0,2639.6,0.06360363]
[1729241556262,4.69157,2640.2,2639.6,0.06360363]
[1729241556454,4.69157,2640.2,2639.6,3.85205363]
[1729241556650,4.69157,2640.2,2639.6,5.62863806]
[1729241556651,7.57539,2640.2,2639.6,5.62863806]
[1729241556973,3.78767,2640.2,2639.6,1.84018806]
[1729241557159,7.57535,2640.2,2639.8,0.8181]
[1729241557332,3.78767,2640.2,2639.8,0.8181]
[1729241557537,3.78767,2640.2,2639.9,0.06343161]
[1729241557775,7.57536,2640.2,2639.9,0.06343161]
[1729241557982,3.78767,2640.2,2639.9,0.06343161]
[1729241558781,7.57536,2640.2,2639.9,0.06343161]
[1729241559282,3.78767,2640.2,2639.9,0.06343161]
[1729241559433,3.78787,2640.0,2639.9,0.06343161]
[1729241559638,3.78787,2640.0,2639.5,1.8006238]
[1729241559879,3.78787,2640.0,2639.6,0.06353303]
[1729241560473,3.78798,2640.0,2639.6,0.06353303]
[1729241561284,3.78802,2639.9,2639.6,0.06353303]
[1729241562363,3.78776,2640.1,2639.6,0.06353303]
[1729241562565,3.78776,2640.1,2639.6,3.85198303]
[1729241563154,7.5756,2640.1,2639.6,3.85198303]
[1729241563395,3.78776,2640.1,2639.6,3.85198303]
[1729241567489,3.78803,2639.9,2639.6,0.06353303]
[1729241567648,3.7883,2639.7,2639.6,0.06353303]
[1729241567849,7.57657,2639.8,2639.3,5.59002683]
[1729241568050,3.78827,2639.8,2639.4,0.06370559]
[1729241568249,3.78831,2639.7,2639.4,0.06370559]
[1729241572817,3.78846,2639.6,2639.4,0.06370559]
[1729241573118,3.78831,2639.7,2639.4,0.06370559]
[1729241574416,3.78847,2639.6,2639.4,0.06370559]
[1729241574914,3.78847,2639.6,2639.5,0.06368549]
[1729241575283,3.78847,2639.6,2639.1,1.61255277]
[1729241575486,0.8493,2639.7,2639.5,0.06368549]
[1729241575684,0.8493,2639.7,2639.2,7.57796]
[1729241575886,4.63761,2639.7,2639.6,0.06360362]
[1729241576085,4.63761,2639.7,2639.2,3.78894]
[1729241576322,4.63761,2639.7,2639.6,0.06360362]
[1729241576523,4.63761,2639.7,2639.2,3.78894]
[1729241576823,4.63761,2639.7,2639.6,0.06360362]
[1729241576977,4.63761,2639.7,2639.2,3.78894]
[1729241577186,4.63761,2639.7,2639.6,0.06360362]
[1729241577386,4.63761,2639.7,2639.2,3.78894]
[1729241577619,4.63761,2639.7,2639.6,0.06360362]
[1729241578492,4.63761,2639.7,2639.2,3.78894]
[1729241579203,4.63761,2639.7,2639.3,0.06384924]
[1729241579433,3.78847,2639.6,2639.3,0.06384924]
[1729241579727,0.8493,2639.7,2639.4,0.06376736]
[1729241579933,4.6376,2639.7,2639.2,3.78894]
[1729241580736,4.6376,2639.7,2639.3,0.06384924]
[1729241581093,4.6376,2639.7,2639.2,3.78894]
[1729241581335,4.6376,2639.7,2639.4,0.06376736]
[1729241581629,4.6376,2639.7,2639.3,0.06384924]
[1729241581933,3.78827,2639.8,2639.4,0.06376736]
[1729241582091,3.78827,2639.8,2639.5,0.8186]
[1729241582292,3.78832,2639.7,2639.5,0.8186]
[1729241582615,3.78832,2639.7,2639.6,0.06371248]
[1729241586436,3.78832,2639.7,2639.3,0.8186]
[1729241586734,3.78848,2639.6,2639.3,0.8186]
[1729241586936,3.78848,2639.6,2639.4,0.06387622]
[1729241587135,3.78832,2639.7,2639.4,0.06387622]
[1729241587511,7.57671,2639.7,2639.4,0.06387622]
[1729241587707,3.78832,2639.7,2639.4,0.06387622]
[1729241588197,3.78832,2639.7,2639.4,1.04829384]
[1729241588545,4.68202,2639.7,2639.4,1.04829384]
[1729241589193,8.47041,2639.7,2639.4,1.04944718]
[1729241589442,4.68202,2639.7,2639.4,1.04944718]
[1729241590003,4.68202,2639.7,2639.4,0.06387622]
[1729241590339,4.68202,2639.7,2639.4,1.04951735]
[1729241590541,4.68202,2639.7,2639.4,0.06387622]
[1729241591201,3.78845,2639.6,2639.4,0.06387622]
[1729241591401,3.78852,2639.6,2639.4,1.04954737]
[1729241591698,3.78852,2639.6,2639.4,0.06387622]
[1729241591941,3.78852,2639.6,2639.4,1.04955337]
[1729241592505,3.78852,2639.6,2639.4,0.06387622]
[1729241593850,3.78852,2639.6,2639.4,1.0495389]
[1729241594033,3.78852,2639.6,2639.4,1.04958324]
[1729241595139,3.78859,2639.5,2639.4,1.04958324]
[1729241595334,3.78859,2639.5,2639.4,0.06387622]
[1729241595509,3.78859,2639.5,2639.3,0.98567419]
[1729241595847,3.78859,2639.5,2639.4,0.06387622]
[1729241602713,3.78831,2639.7,2639.4,0.88247622]
[1729241602914,3.78831,2639.7,2639.4,1.86796333]
[1729241603137,3.78831,2639.7,2639.4,0.88247622]
[1729241603335,3.78819,2639.8,2639.4,1.86796155]
[1729241603550,3.78819,2639.8,2639.5,0.98550225]
[1729241603749,3.78819,2639.8,2639.5,1.04934662]
[1729241603926,3.7881,2639.9,2639.5,1.04934662]
[1729241604126,7.57622,2639.9,2639.5,1.04934662]
[1729241605259,3.78819,2639.8,2639.5,1.04953933]
[1729241605454,3.78819,2639.8,2639.5,0.06384437]
[1729241605613,3.78819,2639.8,2639.5,1.04957619]
[1729241606639,3.78819,2639.8,2639.5,0.06384437]
[1729241608647,3.7883,2639.7,2639.6,0.98593425]
[1729241608871,3.7883,2639.7,2639.6,0.06158954]
[1729241609075,3.7883,2639.7,2639.5,0.98591069]
[1729241609384,3.7883,2639.7,2639.6,0.06158954]
[1729241610278,3.7883,2639.7,2639.4,1.61149927]
[1729241610592,3.7883,2639.7,2639.5,1.04784236]
[1729241610890,3.78845,2639.6,2639.5,0.06167141]
[1729241611090,3.78845,2639.6,2639.5,1.04783077]
[1729241611748,3.78845,2639.6,2639.5,1.04803623]
[1729241614241,3.78845,2639.6,2639.5,1.8409355]
[1729241614586,3.78845,2639.6,2639.5,0.85457068]
[1729241614888,3.78845,2639.6,2639.5,1.04861879]
[1729241615390,3.78845,2639.6,2639.5,1.84151806]
[1729241619391,3.78845,2639.6,2639.5,0.85457068]
[1729241619687,3.78845,2639.6,2639.5,1.84168672]
[1729241620398,3.78845,2639.6,2639.5,1.84170115]
[1729241621795,7.5767,2639.7,2639.5,1.84170115]
[1729241621998,3.7883,2639.7,2639.6,0.98713047]
[1729241622391,3.7883,2639.7,2639.6,1.04872294]
[1729241624163,3.7883,2639.7,2639.6,0.85449174]
[1729241624364,3.7883,2639.7,2639.6,1.84159288]
[1729241628899,0.9017,2640.1,2639.6,1.84159288]
[1729241629093,3.78796,2640.0,2639.7,0.98705347]
[1729241629406,4.68946,2640.1,2639.8,1.04650485]
[1729241629582,3.78802,2639.9,2639.8,0.05949091]
[1729241629793,3.78802,2639.9,2639.8,1.04644851]
[1729241629984,3.78802,2639.9,2639.8,0.9869576]
[1729241630186,3.78802,2639.9,2639.8,1.04644851]
[1729241630590,3.78802,2639.9,2639.8,0.05949091]
[1729241630882,3.78802,2639.9,2639.8,0.98689726]
[1729241631126,3.78802,2639.9,2639.8,1.04638817]
[1729241632504,3.78802,2639.9,2639.8,0.05949091]
[1729241632824,3.7883,2639.7,2639.6,0.79289927]
[1729241632982,3.7883,2639.7,2639.6,0.98688288]
[1729241633559,3.7883,2639.7,2639.6,1.77978215]
[1729241633726,3.7883,2639.7,2639.6,1.77977117]
[1729241633882,3.7883,2639.7,2639.6,0.9868719]
[1729241634979,3.7883,2639.7,2639.6,1.77977117]
[1729241635791,3.7883,2639.7,2639.6,0.9868719]
[1729241636186,3.7883,2639.7,2639.6,1.77977117]
[1729241636830,3.7883,2639.7,2639.6,0.9868719]
[1729241637026,3.7883,2639.7,2639.6,1.77977117]
[1729241637335,3.7883,2639.7,2639.6,0.9868719]
[1729241637735,3.7883,2639.7,2639.6,1.77977117]
[1729241638591,3.7883,2639.7,2639.6,1.77972242]
[1729241638798,3.7883,2639.7,2639.6,0.98682315]
[1729241638997,3.7883,2639.7,2639.6,1.77972242]
[1729241639292,3.7883,2639.7,2639.6,0.98682315]
[1729241639493,3.7883,2639.7,2639.6,1.77972242]
[1729241639793,3.7883,2639.7,2639.6,0.98681508]
[1729241640716,3.7883,2639.7,2639.6,1.04645204]
[1729241641548,3.78818,2639.8,2639.6,1.04645204]
[1729241641702,7.57642,2639.8,2639.7,0.98680446]
[1729241641903,3.788,2640.0,2639.7,1.04635274]
[1729241642098,3.788,2640.0,2639.7,0.0595551]
[1729241642340,3.78797,2640.0,2639.8,0.98678102]
[1729241642559,3.78797,2640.0,2639.7,0.85245437]
[1729241642841,4.67645,2640.1,2639.9,0.0593914]
[1729241643045,3.78775,2640.1,2639.8,0.85237252]
[1729241643243,3.78775,2640.1,2640.0,0.05930955]
[1729241643398,3.78775,2640.1,2639.9,0.98663326]
[1729241643399,3.78775,2640.1,2639.9,0.0593914]
[1729241643601,3.78622425,2640.1,2640.0,0.05930955]
[1729241644030,3.78622425,2640.1,2639.8,0.79289927]
[1729241644233,3.78622425,2640.1,2640.0,0.05930955]
[1729241644405,3.78622425,2640.1,2639.9,0.0593914]
[1729241644606,3.78622425,2640.1,2640.0,0.05930955]
[1729241645066,3.78622425,2640.1,2639.8,0.79289927]
[1729241645375,3.78622425,2640.1,2639.9,1.04587624]
[1729241645577,3.78622425,2640.1,2639.9,0.0593914]
[1729241646579,3.78622425,2640.1,2639.8,0.79289927]
[1729241646762,3.78622425,2640.1,2640.0,0.05930955]
[1729241647073,3.78622425,2640.1,2639.9,0.0593914]
[1729241647370,3.78622425,2640.1,2640.0,0.05930955]
[1729241647773,3.78622425,2640.1,2639.8,0.79289927]
[1729241647938,3.78622425,2640.1,2640.0,0.05930955]
[1729241648139,3.78622425,2640.1,2639.9,0.0593914]
[1729241648363,3.78622425,2640.1,2640.0,0.05930955]
[1729241648878,3.78622425,2640.1,2639.8,0.79289927]
[1729241649177,3.78622425,2640.1,2639.9,1.04563853]
[1729241649375,3.78622425,2640.1,2639.9,0.0593914]
[1729241651546,3.78787,2640.0,2639.9,0.0593914]
[1729241651741,3.78622425,2640.1,2639.9,1.04545301]
[1729241651942,7.57409425,2640.1,2639.9,0.0593914]
[1729241652139,3.78622425,2640.1,2639.9,0.0593914]
[1729241652555,3.78622425,2640.1,2639.7,0.79289927]
[1729241652757,3.78622425,2640.1,2640.0,0.05925073]
[1729241652982,3.78622425,2640.1,2639.9,0.98601229]
[1729241653190,3.78622425,2640.1,2640.0,0.05925073]
[1729241653790,3.78622425,2640.1,2640.0,0.05924485]
[1729241654295,3.78622425,2640.1,2639.9,0.98596461]
[1729241654461,3.78622425,2640.1,2640.0,0.05924485]
[1729241654875,3.78622425,2640.1,2639.8,0.98595823]
[1729241655090,3.78622425,2640.1,2640.0,0.05924485]
[1729241655695,3.78622425,2640.1,2639.7,0.79289927]
[1729241655986,3.78622425,2640.1,2639.8,0.98592018]
[1729241656292,3.78622425,2640.1,2639.8,0.05940854]
[1729241656678,3.78622425,2640.1,2639.7,0.79289927]
[1729241656879,3.78622425,2640.1,2639.9,0.05932669]
[1729241657077,3.78622425,2640.1,2639.8,0.05940854]
[1729241657277,3.78622425,2640.1,2640.0,0.05924485]
[1729241657495,3.78622425,2640.1,2639.9,0.05932669]
[1729241657655,3.78622425,2640.1,2640.0,0.05924485]
[1729241658085,3.78802,2639.9,2639.7,0.79289927]
[1729241658279,3.78802,2639.9,2639.8,0.98589296]
[1729241658485,4.62192,2639.9,2639.8,0.98589296]
[1729241658971,3.78802,2639.9,2639.8,0.98589296]
[1729241660700,3.78774,2640.1,2639.8,1.77879223]
[1729241660905,3.78774,2640.1,2639.9,0.98588756]
[1729241661083,3.78774,2640.1,2639.8,0.79289927]
[1729241661284,3.78774,2640.1,2639.9,0.98585983]
[1729241661456,3.78774,2640.1,2639.8,0.79289927]
[1729241661656,3.78771,2640.2,2639.9,0.98585685]
[1729241661852,3.78771,2640.2,2639.8,0.79289927]
[1729241662113,3.78774,2640.1,2639.9,0.98585678]
[1729241662309,3.78774,2640.1,2639.8,0.79289927]
[1729241662514,3.78774,2640.1,2639.9,0.98587488]
[1729241662673,3.78774,2640.1,2639.8,0.79289927]
[1729241662872,3.78774,2640.1,2639.9,0.9858537]
[1729241663175,3.78774,2640.1,2639.8,0.79289927]
[1729241663380,3.78774,2640.1,2639.9,0.98585354]
[1729241663560,3.78774,2640.1,2639.8,0.79289927]
[1729241663893,3.78774,2640.1,2639.9,0.98586193]
[1729241664103,3.78774,2640.1,2639.8,0.79289927]
[1729241664267,3.78774,2640.1,2639.9,0.98586181]
[1729241664473,3.78774,2640.1,2639.8,0.79289927]
[1729241664792,3.78774,2640.1,2639.9,0.98587991]
[1729241665000,4.62139,2640.3,2639.8,0.79289927]
[1729241665181,3.78749,2640.3,2639.9,1.80467953]
[1729241665383,3.78749,2640.3,2640.0,0.98584622]
[1729241665384,3.78764,2640.2,2640.0,0.98584622]
[1729241665585,3.78749,2640.3,2639.9,1.61169927]
[1729241665758,7.57502,2640.3,2640.0,0.98582486]
[1729241665959,3.78749,2640.3,2639.9,1.61169927]
[1729241666200,3.78746,2640.3,2640.0,0.98582367]
[1729241666356,3.78746,2640.3,2639.9,1.61169927]
[1729241666562,3.78746,2640.3,2640.0,0.98582888]
[1729241666771,3.78762,2640.2,2639.9,1.61169927]
[1729241667108,3.78762,2640.2,2640.0,0.98582578]
[1729241667286,3.78762,2640.2,2639.9,1.61169927]
[1729241667604,3.78762,2640.2,2640.0,0.98587273]
[1729241667776,3.78762,2640.2,2639.9,1.61169927]
[1729241668100,3.78762,2640.2,2640.0,0.9858293]
[1729241668299,3.78762,2640.2,2639.9,1.61169927]
[1729241668501,3.78762,2640.2,2640.0,0.98587685]
[1729241668720,3.78762,2640.2,2639.9,1.61169927]
[1729241668865,3.78762,2640.2,2640.0,0.98583785]
[1729241669061,3.78762,2640.2,2639.9,1.61169927]
[1729241669407,3.78762,2640.2,2640.0,0.98583682]
[1729241669607,3.78762,2640.2,2639.9,1.61169927]
[1729241669811,3.78762,2640.2,2640.0,0.9858657]
[1729241670107,3.78762,2640.2,2639.9,1.61169927]
[1729241670410,3.78762,2640.2,2640.0,0.98586647]
[1729241670607,3.78762,2640.2,2639.9,1.61169927]
[1729241670917,3.78752,2640.3,2640.1,0.05910414]
[1729241671206,3.78752,2640.3,2640.2,0.05902231]
[1729241671713,3.78761,2640.2,2639.9,1.61169927]
[1729241671890,3.78761,2640.2,2640.0,0.98585833]
[1729241672098,3.78745,2640.3,2639.9,1.61169927]
[1729241672386,3.78745,2640.3,2640.0,0.98583368]
[1729241672562,3.78745,2640.3,2639.9,1.61169927]
[1729241672762,3.78745,2640.3,2640.0,0.98583914]
[1729241672962,3.78744,2640.3,2639.9,1.61169927]
[1729241673164,3.78764,2640.2,2640.0,0.98583876]
[1729241673392,3.78764,2640.2,2639.9,1.61169927]
[1729241673604,3.78764,2640.2,2640.0,0.98583832]
[1729241673802,3.78764,2640.2,2639.9,1.61169927]
[1729241673965,3.78764,2640.2,2640.0,0.98583707]
[1729241674165,3.78764,2640.2,2639.9,1.61169927]
[1729241674407,3.78764,2640.2,2640.0,0.98584154]
[1729241674609,3.78764,2640.2,2639.9,1.61169927]
[1729241674780,3.78744,2640.3,2640.0,0.98583705]
[1729241674982,7.57497,2640.3,2639.9,1.61169927]
[1729241675180,3.78744,2640.3,2640.0,0.98583946]
[1729241675418,3.78759,2640.2,2639.9,1.61169927]
[1729241675601,3.78759,2640.2,2640.0,0.98584148]
[1729241675800,3.78759,2640.2,2639.9,1.61169927]
[1729241676122,3.78759,2640.2,2640.0,0.9858314]
[1729241676294,3.78759,2640.2,2639.9,1.61169927]
[1729241676503,3.78759,2640.2,2640.0,0.98581988]
[1729241676713,3.78759,2640.2,2639.9,1.61169927]
[1729241676876,3.78759,2640.2,2640.0,0.98582664]
[1729241677072,3.78759,2640.2,2639.9,1.61169927]
[1729241677273,3.78759,2640.2,2640.0,0.98583295]
[1729241677503,3.78759,2640.2,2639.9,1.61169927]
[1729241677778,3.78759,2640.2,2640.0,0.98580913]
[1729241677983,3.78744,2640.3,2639.9,1.61169927]
[1729241678309,3.78764,2640.2,2640.0,0.98580421]
[1729241678513,3.78764,2640.2,2639.9,1.61169927]
[1729241678713,3.78764,2640.2,2640.0,0.98582566]